bitfinex-derivatives/quotes_BTCF0:USTF0_20250710
["timestamp","ask_amount","ask_price","bid_price","bid_amount"]
[1752149931519,0.1802972,110890.0,110880.0,0.01695578]
[1752149931712,1.08802275,110890.0,110880.0,0.04042578]
[1752149932517,0.84636687,110890.0,110880.0,0.04042578]
[1752149932913,0.84636687,110890.0,110880.0,0.04142578]
[1752149933314,1.08802275,110890.0,110880.0,0.04142578]
[1752149933516,1.08802275,110890.0,110880.0,0.04342578]
[1752149935222,0.60471099,110890.0,110880.0,0.04342578]
[1752149935416,1.08802275,110890.0,110880.0,0.04342578]
[1752149937825,1.08802275,110890.0,110880.0,0.04342578]
[1752149939730,0.84636687,110890.0,110880.0,0.04342578]
[1752149940628,0.84636687,110890.0,110880.0,0.48079506]
[1752149940823,0.84636687,110890.0,110880.0,0.54409506]
[1752149941021,1.47340687,110890.0,110880.0,0.54409506]
[1752149941621,1.47340687,110890.0,110880.0,0.30243918]
[1752149941821,1.47340687,110890.0,110880.0,0.54409506]
[1752149942331,0.84636687,110890.0,110880.0,0.54409506]
[1752149942530,1.47340687,110890.0,110880.0,0.54409506]
[1752149943523,1.47340687,110890.0,110880.0,0.55770281]
[1752149943831,1.47340687,110890.0,110880.0,0.31604693]
[1752149944230,1.47340687,110890.0,110880.0,0.13573353]
[1752149944728,1.50380687,110890.0,110880.0,0.13573353]
[1752149946229,1.50380687,110890.0,110880.0,0.10273353]
[1752149946431,1.50380687,110890.0,110880.0,0.07243353]
[1752149947231,1.74546275,110890.0,110880.0,0.07243353]
[1752149947429,1.74546275,110890.0,110880.0,0.07243681]
[1752149947730,1.50380687,110890.0,110880.0,0.07243681]
[1752149948131,1.50380687,110890.0,110880.0,0.05703681]
[1752149948726,1.74546275,110890.0,110880.0,0.05703681]
[1752149949930,2.10626275,110890.0,110880.0,0.05703681]
[1752149950535,1.86460687,110890.0,110880.0,0.05703681]
[1752149950825,1.86460687,110890.0,110880.0,0.05704166]
[1752149953029,2.10626275,110890.0,110880.0,0.05704166]
[1752149955635,2.10626275,110890.0,110880.0,0.04008588]
[1752149956635,2.10626275,110890.0,110880.0,0.04008891]
[1752149956830,2.18694522,110890.0,110880.0,0.04008891]
[1752149957228,2.10626275,110890.0,110880.0,0.04008891]
[1752149958236,2.10626275,110890.0,110880.0,0.04077891]
[1752149958436,2.18694522,110890.0,110880.0,0.04077891]
[1752149959337,1.94528934,110890.0,110880.0,0.04077891]
[1752149959737,1.94528934,110890.0,110880.0,0.04078357]
[1752149961038,2.18694522,110890.0,110880.0,0.04078357]
[1752149961231,2.10626275,110890.0,110880.0,0.04078357]
[1752149961737,2.10626275,110890.0,110880.0,0.01662357]
[1752149964238,2.10626275,110890.0,110880.0,0.04078357]
[1752149964433,2.18694522,110890.0,110880.0,0.04078357]
[1752149968644,2.10626275,110890.0,110880.0,0.04078357]
[1752149969444,1.38466275,110890.0,110880.0,0.04078357]
[1752149969645,2.10626275,110890.0,110880.0,0.04078357]
[1752149970445,0.1803134,110880.0,110870.0,0.04058275]
[1752149970643,1.11983895,110880.0,110870.0,0.05425711]
[1752149970841,1.12006512,110880.0,110870.0,0.05425711]
[1752149971846,1.12006512,110880.0,110870.0,0.05725711]
[1752149972336,1.13344613,110880.0,110870.0,0.05725711]
[1752149972537,1.13344613,110880.0,110870.0,0.07359711]
[1752149972834,1.13344613,110880.0,110870.0,0.07659711]
[1752149974341,1.13345168,110880.0,110870.0,0.07659711]
[1752149977349,1.13345168,110880.0,110870.0,0.06292275]
[1752149979553,1.49425168,110880.0,110870.0,0.06333492]
[1752149980051,2.12029168,110880.0,110870.0,0.06333492]
[1752149980244,2.12029196,110880.0,110870.0,0.06333492]
[1752149980745,1.6369802,110880.0,110870.0,0.06333492]
[1752149980948,2.12029196,110880.0,110870.0,0.06333492]
[1752149981452,2.12029196,110880.0,110870.0,0.04699492]
[1752149981853,1.0109402,110880.0,110870.0,0.04699492]
[1752149982055,0.9482402,110880.0,110870.0,0.4853205]
[1752149982350,1.56081919,110880.0,110870.0,0.5504205]
[1752149982552,0.93485919,110880.0,110870.0,0.56400487]
[1752149982761,1.56081919,110880.0,110870.0,0.56400487]
[1752149982950,0.93485919,110880.0,110870.0,0.54661995]
[1752149983148,0.93485919,110880.0,110870.0,0.30489748]
[1752149983347,0.93485919,110880.0,110870.0,0.54655336]
[1752149984548,0.57405919,110880.0,110870.0,0.54655336]
[1752149985254,0.81571507,110880.0,110870.0,0.54655336]
[1752149985852,0.57405919,110880.0,110870.0,0.54655336]
[1752149986058,0.39374579,110880.0,110870.0,0.78820924]
[1752149986354,0.39374579,110880.0,110870.0,1.41408924]
[1752149986757,0.39374579,110880.0,110870.0,1.40057146]
[1752149986954,0.39374579,110880.0,110870.0,1.41403479]
[1752149987156,0.39374579,110880.0,110870.0,0.93072303]
[1752149987455,0.03294579,110880.0,110870.0,1.41403479]
[1752149987658,0.03294579,110880.0,110870.0,1.42795563]
[1752149987852,0.03294579,110880.0,110870.0,1.42774735]
[1752149988051,0.03294579,110880.0,110870.0,1.9556763]
[1752149988261,1.27613757,110900.0,110890.0,0.42195298]
[1752149988453,0.60526457,110900.0,110890.0,0.47582382]
[1752149988652,0.84692045,110900.0,110890.0,0.52410298]
[1752149989756,0.84792045,110900.0,110890.0,0.52410298]
[1752149990158,0.84892045,110900.0,110890.0,0.52410298]
[1752149990359,0.84892045,110900.0,110890.0,0.53778064]
[1752149990550,0.82982088,110900.0,110890.0,0.53778064]
[1752149991258,0.588165,110900.0,110890.0,1.16354064]
[1752149992255,0.587165,110900.0,110890.0,1.16354064]
[1752149992452,0.587165,110900.0,110890.0,1.16454064]
[1752149992654,0.3618,110900.0,110890.0,1.16454064]
[1752149993154,0.5410809,110900.0,110890.0,1.16554064]
[1752149993458,0.94984018,110910.0,110900.0,0.1802809]
[1752149993759,0.91794018,110910.0,110900.0,0.52818678]
[1752149994651,0.5410647,110910.0,110900.0,0.76984266]
[1752149994847,0.5420647,110910.0,110900.0,0.76984266]
[1752149995361,0.5430647,110910.0,110900.0,0.76984266]
[1752149995857,0.78472058,110910.0,110900.0,0.76984266]
[1752149996258,0.5430647,110910.0,110900.0,0.76984266]
[1752149999354,0.5430647,110910.0,110900.0,0.2865309]
[1752149999556,0.5430647,110910.0,110900.0,0.76984266]
[1752150000160,0.57578616,110910.0,110900.0,0.76984266]
[1752150000659,0.81744204,110910.0,110900.0,0.2865309]
[1752150001060,0.81744204,110910.0,110900.0,1.15366678]
[1752150001258,0.60588616,110910.0,110900.0,1.15366678]
[1752150001561,0.88074204,110910.0,110900.0,1.15366678]
[1752150001761,0.84802058,110910.0,110900.0,1.15366678]
[1752150002461,0.6063647,110910.0,110900.0,1.15366678]
[1752150002661,0.84802058,110910.0,110900.0,1.15366678]
[1752150002861,0.84791305,110910.0,110900.0,0.9120109]
[1752150004863,0.6063647,110910.0,110900.0,1.15355925]
[1752150007269,0.6063647,110910.0,110900.0,0.9120109]
[1752150007563,0.6063647,110910.0,110900.0,0.8790109]
[1752150007963,0.6063647,110910.0,110900.0,0.8457109]
[1752150008169,0.84791305,110910.0,110900.0,0.8457109]
[1752150009567,0.6063647,110910.0,110900.0,0.8457109]
[1752150010069,0.6063647,110910.0,110900.0,1.08725925]
[1752150011065,0.6063647,110910.0,110900.0,0.8457109]
[1752150011267,0.6063647,110910.0,110900.0,1.08725925]
[1752150014072,0.2455647,110910.0,110900.0,1.08725925]
[1752150014271,0.6063647,110910.0,110900.0,1.08725925]
[1752150015971,0.6063647,110910.0,110900.0,0.8457109]
[1752150016174,0.6063647,110910.0,110900.0,1.08725925]
[1752150016367,0.63911618,110910.0,110900.0,1.08725925]
[1752150018070,0.63911618,110910.0,110900.0,1.10120182]
[1752150024971,0.63911618,110910.0,110900.0,1.34272049]
[1752150025172,0.88063844,110910.0,110900.0,1.34272049]
[1752150025474,0.88063844,110910.0,110900.0,1.37442049]
[1752150026575,0.88063844,110910.0,110900.0,1.13233823]
[1752150027866,0.88063844,110910.0,110900.0,0.05391507]
[1752150028066,1.1221607,110910.0,110900.0,0.05391507]
[1752150028274,1.1221607,110910.0,110900.0,0.67879507]
[1752150029076,1.1221607,110910.0,110900.0,0.05391507]
[1752150030576,1.20284317,110910.0,110900.0,0.05391507]
[1752150030768,1.20284317,110910.0,110900.0,0.01396507]
[1752150032278,1.27384027,110910.0,110900.0,0.01396507]
[1752150032880,0.2704493,110890.0,110880.0,0.02251]
[1752150033181,1.93624084,110890.0,110880.0,0.02251]
[1752150033378,2.2432631,110890.0,110880.0,0.02251]
[1752150033781,2.2432631,110890.0,110880.0,0.03575328]
[1752150033980,2.2432631,110890.0,110880.0,0.03775378]
[1752150034180,2.00174084,110890.0,110880.0,0.03775378]
[1752150034380,2.00174084,110890.0,110880.0,0.04075378]
[1752150034882,2.00189894,110890.0,110880.0,0.04075378]
[1752150037481,1.76021858,110890.0,110880.0,0.04075378]
[1752150037682,2.00189894,110890.0,110880.0,0.05779187]
[1752150038478,1.13537858,110890.0,110880.0,0.23810537]
[1752150038684,1.13537858,110890.0,110880.0,0.07350187]
[1752150038685,2.00185894,110890.0,110880.0,0.07350187]
[1752150040283,1.28025894,110890.0,110880.0,0.07350187]
[1752150040476,2.00185894,110890.0,110880.0,0.07350187]
[1752150041278,2.00185894,110890.0,110880.0,0.25381537]
[1752150041783,2.00185894,110890.0,110880.0,0.07350187]
[1752150042981,2.00185894,110890.0,110880.0,0.07349782]
[1752150044884,2.00185894,110890.0,110880.0,0.08742092]
[1752150045987,2.00185894,110890.0,110880.0,0.08741357]
[1752150046890,1.76017858,110890.0,110880.0,0.08741357]
[1752150047083,2.00185894,110890.0,110880.0,0.08741357]
[1752150048187,2.00185894,110890.0,110880.0,0.07349047]
[1752150051788,1.28025894,110890.0,110880.0,0.07349047]
[1752150051984,2.00185894,110890.0,110880.0,0.07349047]
[1752150056791,2.24352732,110890.0,110880.0,0.07349047]
[1752150057685,2.24352732,110890.0,110880.0,0.05778047]
[1752150058790,2.24352732,110890.0,110880.0,0.05780258]
[1752150060493,2.21077584,110890.0,110880.0,0.05780258]
[1752150060692,2.24352965,110890.0,110880.0,0.05780258]
[1752150061286,2.00185528,110890.0,110880.0,0.05780258]
[1752150061481,2.00153528,110890.0,110880.0,0.05780258]
[1752150061694,2.00149528,110890.0,110880.0,0.07400258]
[1752150063394,2.00153528,110890.0,110880.0,0.07403609]
[1752150064393,2.00145528,110890.0,110880.0,0.07403609]
[1752150066091,2.00147386,110890.0,110880.0,0.07403609]
[1752150066295,2.00147386,110890.0,110880.0,0.06074809]
[1752150066593,2.00147386,110890.0,110880.0,0.07403729]
[1752150067700,1.75979949,110890.0,110880.0,0.07403729]
[1752150067997,2.00147386,110890.0,110880.0,0.07403729]
[1752150077101,2.00147386,110890.0,110880.0,0.0569992]
[1752150080406,1.75979949,110890.0,110880.0,0.29867357]
[1752150080608,2.00147386,110890.0,110880.0,0.0569992]
[1752150081206,2.00119386,110890.0,110880.0,0.04371]
[1752150081410,2.00119386,110890.0,110880.0,0.05699766]
[1752150088512,1.27584389,110890.0,110880.0,0.2240236]
[1752150088721,1.51751826,110890.0,110880.0,0.52909797]
[1752150089113,1.54771826,110890.0,110880.0,0.52909797]
[1752150090514,1.54771826,110890.0,110880.0,0.10711]
[1752150090718,1.54771826,110890.0,110880.0,0.34878437]
[1752150091228,1.54771826,110890.0,110880.0,0.29863434]
[1752150091923,1.54771826,110890.0,110880.0,0.28538437]
[1752150092124,1.54771826,110890.0,110880.0,0.29862992]
[1752150092425,1.54771826,110890.0,110880.0,0.28538437]
[1752150092824,1.54771826,110890.0,110880.0,0.04371]
[1752150094826,1.54771826,110890.0,110880.0,0.05695586]
[1752150097226,0.92371826,110890.0,110880.0,0.05695586]
[1752150097425,1.30588389,110890.0,110880.0,0.05695586]
[1752150097625,1.54755826,110890.0,110880.0,0.05695586]
[1752150099331,1.54755826,110890.0,110880.0,0.05695619]
[1752150100128,1.54755826,110890.0,110880.0,0.23727009]
[1752150100428,0.92371826,110890.0,110880.0,0.23727009]
[1752150100630,1.54747826,110890.0,110880.0,0.46569827]
[1752150101519,1.54747826,110890.0,110880.0,0.2240239]
[1752150102331,1.54747826,110890.0,110880.0,0.04371]
[1752150105730,1.54747826,110890.0,110880.0,0.005]
[1752150108732,1.54747826,110890.0,110880.0,0.1853138]
[1752150110034,1.54747826,110890.0,110880.0,0.005]
[1752150110437,1.54747826,110890.0,110880.0,0.1853139]
[1752150111129,1.30580389,110890.0,110880.0,0.1853139]
[1752150111435,1.54747826,110890.0,110880.0,0.1853139]
[1752150112538,1.54747826,110890.0,110880.0,0.005]
[1752150113641,1.78915263,110890.0,110880.0,0.01827092]
[1752150115036,1.30580389,110890.0,110880.0,0.01827092]
[1752150115337,1.78915263,110890.0,110880.0,0.01827092]
[1752150117236,1.78915263,110890.0,110880.0,0.01827311]
[1752150118839,1.54747826,110890.0,110880.0,0.01827311]
[1752150122137,1.78915263,110890.0,110880.0,0.01827311]
[1752150122939,1.75638024,110890.0,110880.0,0.01827311]
[1752150123850,1.78898462,110890.0,110880.0,0.01827311]
[1752150124345,1.30563588,110890.0,110880.0,0.01827311]
[1752150124644,1.54731025,110890.0,110880.0,0.01827311]
[1752150125549,1.54731025,110890.0,110880.0,0.01827058]
[1752150126143,0.92355025,110890.0,110880.0,0.01827058]
[1752150126343,1.54679025,110890.0,110880.0,0.01827058]
[1752150126736,2.14926462,110890.0,110880.0,0.01827058]
[1752150130235,1.52602462,110890.0,110880.0,0.01827058]
[1752150130434,1.90755025,110890.0,110880.0,0.01827058]
[1752150130847,1.28435025,110890.0,110880.0,0.19858448]
[1752150131046,1.90755025,110890.0,110880.0,0.19858448]
[1752150131251,1.90755025,110890.0,110880.0,0.19859653]
[1752150131746,1.90755025,110890.0,110880.0,0.01828263]
[1752150134046,1.90755025,110890.0,110880.0,0.005]
[1752150134347,1.66587588,110890.0,110880.0,0.01827011]
[1752150134550,1.90755025,110890.0,110880.0,0.01827011]
[1752150135949,1.87494587,110890.0,110880.0,0.01827011]
[1752150136254,1.9075639,110890.0,110880.0,0.01827011]
[1752150137754,1.2843639,110890.0,110880.0,0.01827011]
[1752150137949,1.9074439,110890.0,110880.0,0.01827011]
[1752150139653,0.68188953,110890.0,110880.0,0.19858401]
[1752150139859,1.5466439,110890.0,110880.0,0.1853139]
[1752150140051,1.5466439,110890.0,110880.0,0.19856144]
[1752150140253,1.5466439,110890.0,110880.0,0.1853139]
[1752150140560,1.5466439,110890.0,110880.0,0.005]
[1752150140759,1.5466439,110890.0,110880.0,0.01824749]
[1752150145761,1.30496953,110890.0,110880.0,0.01824749]
[1752150145948,1.5466439,110890.0,110880.0,0.01824749]
[1752150146461,1.1858439,110890.0,110880.0,0.01824749]
[1752150146662,1.5466439,110890.0,110880.0,0.01824749]
[1752150150168,1.78831827,110890.0,110880.0,0.01824749]
[1752150151357,1.16523827,110890.0,110880.0,0.01824749]
[1752150151554,1.78803827,110890.0,110880.0,0.01824749]
[1752150155168,1.5463639,110890.0,110880.0,0.01824749]
[1752150158870,1.30468953,110890.0,110880.0,0.01824749]
[1752150159075,1.5463639,110890.0,110880.0,0.01824749]
[1752150166776,1.5463639,110890.0,110880.0,0.005]
[1752150167078,1.5463639,110890.0,110880.0,0.01825045]
[1752150170481,1.78803827,110890.0,110880.0,0.01825045]
[1752150170680,1.5463639,110890.0,110880.0,0.01825045]
[1752150171182,1.78803827,110890.0,110880.0,0.01825045]
[1752150171379,1.5463639,110890.0,110880.0,0.01825045]
[1752150171584,1.78803827,110890.0,110880.0,0.01825045]
[1752150175785,1.78803827,110890.0,110880.0,0.01826078]
[1752150181691,1.5463639,110890.0,110880.0,0.01826078]
[1752150182390,1.78803827,110890.0,110880.0,0.01826078]
[1752150186292,1.16523827,110890.0,110880.0,0.01826078]
[1752150186493,1.78731827,110890.0,110880.0,0.01826078]
[1752150190693,1.16523827,110890.0,110880.0,0.01826078]
[1752150190992,1.78723827,110890.0,110880.0,0.01826078]
[1752150191689,1.5455639,110890.0,110880.0,0.01826078]
[1752150192193,1.78723827,110890.0,110880.0,0.01826078]
[1752150192693,1.78723827,110890.0,110880.0,0.01828311]
[1752150195095,1.78723827,110890.0,110880.0,0.04218311]
[1752150195695,1.78723827,110890.0,110880.0,0.04218278]
[1752150196194,1.5454839,110890.0,110880.0,0.05816278]
[1752150198795,1.5454839,110890.0,110880.0,0.0721406]
[1752150199002,1.78715827,110890.0,110880.0,0.0721406]
[1752150201592,1.78715827,110890.0,110880.0,0.0561606]
[1752150202900,1.30380953,110890.0,110880.0,0.0322606]
[1752150203100,1.78715827,110890.0,110880.0,0.0322606]
[1752150203300,1.78715827,110890.0,110880.0,0.0561606]
[1752150205402,1.78715827,110890.0,110880.0,0.05616116]
[1752150206300,1.30380953,110890.0,110880.0,0.05616116]
[1752150206500,1.78715827,110890.0,110880.0,0.05616116]
[1752150211104,1.75454024,110890.0,110880.0,0.05616116]
[1752150211895,1.39374024,110890.0,110880.0,0.05616116]
[1752150212102,1.75454024,110890.0,110880.0,0.05616116]
[1752150212306,1.78747022,110890.0,110880.0,0.05616116]
[1752150217708,1.78747022,110890.0,110880.0,0.03226116]
[1752150218909,1.78747022,110890.0,110880.0,0.05616116]
[1752150219110,1.78747022,110890.0,110880.0,0.03226116]
[1752150219403,1.78747022,110890.0,110880.0,0.03228175]
[1752150220612,1.86828739,110890.0,110880.0,0.03228175]
[1752150222515,1.86828739,110890.0,110880.0,0.03228767]
[1752150230522,1.24636739,110890.0,110880.0,0.03228767]
[1752150230727,1.78683022,110890.0,110880.0,0.03228767]
[1752150230928,1.78683022,110890.0,110880.0,0.05581767]
[1752150231630,1.78683022,110890.0,110880.0,0.04251374]
[1752150231829,1.78683022,110890.0,110880.0,0.05581519]
[1752150233931,1.16555022,110890.0,110880.0,0.05581519]
[1752150234128,1.78679022,110890.0,110880.0,0.05581519]
[1752150234522,1.78679022,110890.0,110880.0,0.04251374]
[1752150234726,1.78679022,110890.0,110880.0,0.05581488]
[1752150242436,1.78679022,110890.0,110880.0,0.0558158]
[1752150243126,1.42599022,110890.0,110880.0,0.0558158]
[1752150243431,1.78679022,110890.0,110880.0,0.0558158]
[1752150244139,1.16555022,110890.0,110880.0,0.0558158]
[1752150244438,1.78663022,110890.0,110880.0,0.0558158]
[1752150245241,1.16555022,110890.0,110880.0,0.0558158]
[1752150245539,1.51471585,110890.0,110880.0,0.29960811]
[1752150245732,1.51471585,110890.0,110880.0,0.37486045]
[1752150246539,1.51471585,110890.0,110880.0,0.37485317]
[1752150246739,1.51471585,110890.0,110880.0,0.1331788]
[1752150253741,1.27304148,110890.0,110880.0,0.1331788]
[1752150253940,1.27304148,110890.0,110880.0,0.39192205]
[1752150254140,1.51471585,110890.0,110880.0,0.15024768]
[1752150254341,1.27304148,110890.0,110880.0,0.33056148]
[1752150254541,1.51471585,110890.0,110880.0,0.33056148]
[1752150254853,1.51471585,110890.0,110880.0,0.15024768]
[1752150257346,1.54751585,110890.0,110880.0,0.15024768]
[1752150258946,1.54751585,110890.0,110880.0,0.11824768]
[1752150259647,1.78919022,110890.0,110880.0,0.08824768]
[1752150260249,1.78919022,110890.0,110880.0,0.07427122]
[1752150260446,1.78919022,110890.0,110880.0,0.08835148]
[1752150260644,1.78919022,110890.0,110880.0,0.07293148]
[1752150260846,1.87000739,110890.0,110880.0,0.04940148]
[1752150261746,1.87000739,110890.0,110880.0,0.07298148]
[1752150263845,1.87000739,110890.0,110880.0,0.04940148]
[1752150264249,1.78919022,110890.0,110880.0,0.07298148]
[1752150265144,1.78919022,110890.0,110880.0,0.0559126]
[1752150268250,1.78879022,110890.0,110880.0,0.0559126]
[1752150269844,1.86960739,110890.0,110880.0,0.0559126]
[1752150270654,1.78879022,110890.0,110880.0,0.0559126]
[1752150271852,1.80768382,110890.0,110880.0,0.05592717]
[1752150275153,1.80768382,110890.0,110880.0,0.05591815]
[1752150277454,2.16848382,110890.0,110880.0,0.05591815]
[1752150279953,1.54784382,110890.0,110880.0,0.07133815]
[1752150280153,1.92660945,110890.0,110880.0,0.49332632]
[1752150280356,1.92660945,110890.0,110880.0,0.29976018]
[1752150280658,1.92660945,110890.0,110880.0,0.05808581]
[1752150281662,1.92660945,110890.0,110880.0,0.29976018]
[1752150283861,1.92660945,110890.0,110880.0,0.05807832]
[1752150284761,2.16828382,110890.0,110880.0,0.05807832]
[1752150285259,1.92660945,110890.0,110880.0,0.05807832]
[1752150285652,1.92660945,110890.0,110880.0,0.07134045]
[1752150290068,1.92660945,110890.0,110880.0,0.05726213]
[1752150290367,2.16828382,110890.0,110880.0,0.07133927]
[1752150291667,1.68493508,110890.0,110880.0,0.07133927]
[1752150291968,2.16828382,110890.0,110880.0,0.07133927]
[1752150293670,1.92660945,110890.0,110880.0,0.07133927]
[1752150295469,1.20500945,110890.0,110880.0,0.07133927]
[1752150295669,1.80748382,110890.0,110880.0,0.07133927]
[1752150295968,1.80748382,110890.0,110880.0,0.05807714]
[1752150296168,1.80730697,110890.0,110880.0,0.07135864]
[1752150300574,1.80730697,110890.0,110880.0,0.07135688]
[1752150301372,1.80730697,110890.0,110880.0,0.05593688]
[1752150303772,1.80730697,110890.0,110880.0,0.03235688]
[1752150304470,1.80730697,110890.0,110880.0,0.05558688]
[1752150304670,1.32395823,110890.0,110880.0,0.05558688]
[1752150304870,1.80730697,110890.0,110880.0,0.05558688]
[1752150306282,1.80730697,110890.0,110880.0,0.03235688]
[1752150306577,0.18033,110870.0,110860.0,0.9974289]
[1752150306882,0.8508875,110870.0,110860.0,1.27198496]
[1752150307082,1.49742486,110870.0,110860.0,1.27198496]
[1752150307583,1.49742486,110870.0,110860.0,1.2507193]
[1752150307784,1.49742486,110870.0,110860.0,1.2056337]
[1752150308381,1.49842486,110870.0,110860.0,1.2085937]
[1752150308584,1.92944724,110870.0,110860.0,1.2318237]
[1752150308973,1.92944724,110870.0,110860.0,1.2318637]
[1752150309182,1.28290988,110870.0,110860.0,1.2318637]
[1752150309477,1.28290988,110870.0,110860.0,1.2318237]
[1752150309684,1.28290988,110870.0,110860.0,0.99014933]
[1752150310274,1.34450988,110870.0,110860.0,0.99014933]
[1752150310585,0.9134875,110870.0,110860.0,0.99014933]
[1752150311085,1.26362006,110870.0,110860.0,0.37014933]
[1752150311285,1.26362006,110870.0,110860.0,0.99014933]
[1752150311885,1.26362006,110870.0,110860.0,0.37014933]
[1752150312084,1.26362006,110870.0,110860.0,0.99010933]
[1752150313485,0.9134875,110870.0,110860.0,0.82771615]
[1752150313687,0.9134875,110870.0,110860.0,0.91788705]
[1752150313885,0.9134875,110870.0,110860.0,0.29792705]
[1752150314085,0.9134875,110870.0,110860.0,0.91788705]
[1752150314485,1.1827811,110870.0,110860.0,0.91788705]
[1752150314886,1.1827811,110870.0,110860.0,0.29792705]
[1752150315088,1.1827811,110870.0,110860.0,0.91784705]
[1752150315286,1.3170364,110870.0,110850.0,0.29960857]
[1752150315588,0.44663057,110860.0,110850.0,0.49725937]
[1752150315788,0.4952937,110860.0,110850.0,1.13218937]
[1752150315987,0.4952937,110860.0,110850.0,0.451011]
[1752150316191,0.8560937,110860.0,110850.0,1.11934337]
[1752150316585,0.8560937,110860.0,110850.0,0.79554875]
[1752150316786,0.8560937,110860.0,110850.0,1.12326687]
[1752150316986,1.1253873,110860.0,110850.0,1.16835627]
[1752150317391,1.1253873,110860.0,110850.0,1.19144627]
[1752150317592,1.1253873,110860.0,110850.0,1.19344627]
[1752150317791,0.8560937,110860.0,110850.0,1.19344627]
[1752150318387,0.8560937,110860.0,110850.0,1.19244627]
[1752150318887,0.8560937,110860.0,110850.0,1.20283043]
[1752150319594,1.04454532,110860.0,110850.0,1.0404314]
[1752150319794,1.10804532,110860.0,110850.0,1.0404314]
[1752150320493,1.10804532,110860.0,110850.0,1.13653043]
[1752150320695,1.10804532,110860.0,110850.0,0.50622627]
[1752150320891,1.10904532,110860.0,110850.0,1.12606627]
[1752150321095,1.35071969,110860.0,110850.0,1.12606627]
[1752150321293,1.34971969,110860.0,110850.0,0.0391]
[1752150321595,1.35171969,110860.0,110850.0,0.73500878]
[1752150321895,1.35171969,110860.0,110850.0,0.75001878]
[1752150322798,1.16326807,110860.0,110850.0,0.75001878]
[1752150323599,1.35171969,110860.0,110850.0,0.75001878]
[1752150323998,1.16326807,110860.0,110850.0,0.75001878]
[1752150324197,1.16326807,110860.0,110850.0,0.46580542]
[1752150324397,1.16326807,110860.0,110850.0,0.64616802]
[1752150325095,1.43256167,110860.0,110850.0,0.64616802]
[1752150325603,1.43256167,110860.0,110850.0,0.48375906]
[1752150326591,1.16326807,110860.0,110850.0,0.77874114]
[1752150326792,1.43236752,110860.0,110850.0,0.77874114]
[1752150326988,1.43236752,110860.0,110850.0,0.15894114]
[1752150327198,0.1803626,110850.0,110840.0,1.18915528]
[1752150327394,1.08266107,110850.0,110840.0,1.18915528]
[1752150327595,1.10727107,110850.0,110840.0,1.18915528]
[1752150327797,0.8655967,110850.0,110840.0,1.18915528]
[1752150327993,1.10727107,110850.0,110840.0,0.22726122]
[1752150328198,0.8655967,110850.0,110840.0,1.08869559]
[1752150328401,1.10827107,110850.0,110840.0,1.09069559]
[1752150328599,1.10827107,110850.0,110840.0,0.85002122]
[1752150328902,0.9199101,110850.0,110840.0,1.09169559]
[1752150329101,1.10825567,110850.0,110840.0,1.09169559]
[1752150329392,0.1803788,110840.0,110830.0,0.24475799]
[1752150329597,1.34832506,110840.0,110830.0,0.24475799]
[1752150330103,1.16000067,110840.0,110830.0,0.24475799]
[1752150330304,1.34832506,110840.0,110830.0,0.19965929]
[1752150331101,1.34832506,110840.0,110830.0,0.18219408]
[1752150331400,1.34832506,110840.0,110830.0,0.00180448]
[1752150331707,0.1803951,110830.0,110820.0,0.91013926]
[1752150332004,1.10969885,110830.0,110820.0,0.91013926]
[1752150333407,1.10969885,110830.0,110820.0,0.91113926]
[1752150333706,1.11069885,110830.0,110820.0,0.91313926]
[1752150333908,1.11069885,110830.0,110820.0,0.8482645]
[1752150334301,1.11069885,110830.0,110820.0,0.8322645]
[1752150334603,0.9225426,110830.0,110820.0,0.8322645]
[1752150334802,0.68086823,110830.0,110820.0,0.8322645]
[1752150335002,0.9225426,110830.0,110820.0,0.8322645]
[1752150336308,0.68086823,110830.0,110820.0,0.2285045]
[1752150336509,0.9225426,110830.0,110820.0,0.8032021]
[1752150336811,0.9421619,110830.0,110820.0,0.8236505]
[1752150337511,0.6677344,110830.0,110820.0,0.8236505]
[1752150337711,0.90840877,110830.0,110820.0,0.8236505]
[1752150338013,0.91040877,110830.0,110820.0,0.8236505]
[1752150340813,0.96455726,110830.0,110820.0,0.8236505]
[1752150341515,0.96455726,110830.0,110820.0,0.2038505]
[1752150341715,1.20623163,110830.0,110820.0,0.1814114]
[1752150341916,1.20623163,110830.0,110820.0,0.001]
[1752150342114,1.20623163,110830.0,110820.0,0.1814114]
[1752150342515,1.20623163,110830.0,110820.0,0.001]
[1752150342812,1.93338756,110830.0,110820.0,0.001]
[1752150344514,1.93338756,110830.0,110820.0,0.1814114]
[1752150344714,1.93338756,110830.0,110820.0,0.001]
[1752150344910,1.93342756,110830.0,110820.0,0.1814114]
[1752150345114,1.93342756,110830.0,110820.0,0.001]
[1752150345521,1.07187319,110830.0,110820.0,0.42308577]
[1752150345817,1.69171319,110830.0,110820.0,0.42308577]
[1752150346319,1.69171319,110830.0,110820.0,0.1814114]
[1752150346723,1.69171319,110830.0,110820.0,0.42308577]
[1752150347319,1.69179319,110830.0,110820.0,0.42308577]
[1752150347711,1.07187319,110830.0,110820.0,0.42308577]
[1752150347913,0.64980372,110830.0,110820.0,0.66476014]
[1752150348119,0.25590372,110830.0,110820.0,1.02556014]
[1752150348416,0.20769372,110830.0,110820.0,1.05636014]
[1752150348611,0.10037058,110830.0,110820.0,1.05636014]
[1752150348813,0.15624368,110830.0,110820.0,0.81479611]
[1752150349122,0.15624368,110830.0,110820.0,1.53164482]
[1752150350217,0.18104368,110830.0,110820.0,1.53164482]
[1752150350811,0.18104368,110830.0,110820.0,1.28986011]
[1752150351607,0.18104368,110830.0,110820.0,1.10939611]
[1752150354421,0.0464193,110830.0,110820.0,1.10939611]
[1752150357215,0.0464193,110830.0,110820.0,1.45909521]
[1752150357417,0.0464193,110830.0,110820.0,1.2173105]
[1752150357617,0.0464193,110830.0,110820.0,1.10939611]
[1752150357819,0.0464193,110830.0,110820.0,1.2173105]
[1752150359525,0.0278,110830.0,110820.0,1.2173105]
[1752150360724,0.0278,110830.0,110820.0,1.45909521]
[1752150361218,0.0278,110830.0,110820.0,1.2173105]
[1752150361614,0.0899,110830.0,110820.0,1.2173105]
[1752150364919,0.0899,110830.0,110820.0,1.10939611]
[1752150365425,0.0899,110830.0,110820.0,1.72975611]
[1752150366629,0.0899,110830.0,110820.0,1.10939611]
[1752150366824,0.0899,110830.0,110820.0,1.72975611]
[1752150367225,0.0899,110830.0,110820.0,1.35118082]
[1752150367625,0.0899,110830.0,110820.0,1.97158082]
[1752150367929,0.0248,110840.0,110830.0,0.180395]
[1752150368128,0.3608,110850.0,110840.0,0.1803788]
[1752150368328,0.46291,110850.0,110840.0,1.14114077]
[1752150368928,0.46291,110850.0,110840.0,1.15136847]
[1752150369623,0.10711,110850.0,110840.0,1.51216847]
[1752150370022,0.10611,110850.0,110840.0,1.51316847]
[1752150370625,0.10611,110850.0,110840.0,1.27138376]
[1752150370821,0.10611,110850.0,110840.0,1.51316847]
[1752150371731,0.10411,110850.0,110840.0,1.51316847]
[1752150373130,0.0889,110850.0,110840.0,1.51316847]
[1752150373330,0.0889,110850.0,110840.0,1.51315244]
[1752150373531,0.10539,110850.0,110840.0,1.51315244]